fUST/lending_fUST_20250616
["ID","MTS","AMOUNT","RATE_DAILY","PERIOD"]
[366148237,1750087840770,-1392.94120205,0.00020934,4]
[366148240,1750087840780,-684.21421362,0.00020974,2]
[366148243,1750087840790,-1583.34785037,0.00020995,2]
[366148246,1750087840801,-1023.32593607,0.00021,15]
[366148249,1750087840812,-1000.0,0.00021048,2]
[366148252,1750087840823,-1000.0,0.00021048,2]
[366148255,1750087840833,-503.93213778,0.00021048,2]
[366148258,1750087840843,-222.71841083,0.00021048,2]
[366148261,1750087840854,-1000.0,0.00021074,2]
[366148264,1750087840864,-460.0,0.00021095,2]
[366148267,1750087840874,-460.0,0.00021095,4]
[366148269,1750087840887,-460.0,0.00021095,4]
[366148273,1750087840901,-460.0,0.00021095,4]
[366148275,1750087840912,-460.0,0.00021095,4]
[366148278,1750087840921,-460.0,0.00021095,4]
[366148281,1750087840931,-460.0,0.00021095,4]
[366148284,1750087840942,-460.0,0.00021095,4]
[366148287,1750087840951,-460.0,0.00021095,4]
[366148290,1750087840962,-460.0,0.00021095,4]
[366148294,1750087840973,-621.17,0.00021095,4]
[366148297,1750087840983,-460.0,0.00021095,4]
[366148300,1750087840994,-460.0,0.00021095,4]
[366148303,1750087841004,-551.53,0.00021095,4]
[366148306,1750087841013,-460.0,0.00021095,4]
[366148308,1750087841024,-981.71,0.00021095,4]
[366148310,1750087841033,-628.55,0.00021095,4]
[366148312,1750087841043,-151.0,0.0002113,2]
[366148315,1750087841053,-5000.0,0.0002113,2]
[366148318,1750087841064,-500.0,0.0002113,2]
[366148321,1750087841074,-207.4,0.0002113,2]
[366148324,1750087841084,-500.0,0.0002113,2]
[366148327,1750087841094,-152.05512934,0.0002113,2]
[366148330,1750087841103,-500.0,0.0002113,2]
[366148333,1750087841112,-1688.0,0.0002113,2]
[366148336,1750087841122,-500.0,0.0002113,2]
[366148339,1750087841133,-500.0,0.0002113,2]
[366148342,1750087841142,-500.0,0.0002113,2]
[366148344,1750087841154,-500.0,0.0002113,2]
[366148348,1750087841166,-500.0,0.0002113,2]
[366148351,1750087841176,-500.0,0.0002113,2]
[366148353,1750087841186,-500.0,0.0002113,2]
[366148356,1750087841196,-500.0,0.0002113,2]
[366148359,1750087841205,-500.0,0.0002113,2]
[366148362,1750087841215,-151.0,0.0002113,2]
[366148366,1750087841226,-500.0,0.0002113,2]
[366148370,1750087841236,-500.0,0.0002113,2]
[366148373,1750087841247,-500.0,0.0002113,2]
[366148376,1750087841257,-608.62004071,0.0002113,2]
[366148379,1750087841268,-151.0,0.0002113,2]
[366148382,1750087841277,-500.0,0.0002113,2]
[366148385,1750087841287,-500.0,0.0002113,2]
[366148388,1750087841297,-500.0,0.0002113,2]
[366148391,1750087841306,-500.0,0.0002113,2]
[366148394,1750087841317,-500.0,0.0002113,2]
[366148397,1750087841327,-151.0,0.0002113,2]
[366148400,1750087841338,-500.0,0.0002113,2]
[366148403,1750087841347,-500.0,0.0002113,2]
[366148406,1750087841357,-500.0,0.0002113,2]
[366148409,1750087841368,-151.0,0.0002113,2]
[366148412,1750087841378,-500.0,0.0002113,2]
[366148415,1750087841389,-161.11504145,0.0002113,2]
[366148418,1750087841401,-500.0,0.0002113,2]
[366148421,1750087841411,-151.0,0.0002113,2]
[366148424,1750087841421,-500.0,0.0002113,2]
[366148427,1750087841430,-500.0,0.0002113,2]
[366148429,1750087841439,-151.0,0.0002113,2]
[366148432,1750087841448,-500.0,0.0002113,2]
[366148435,1750087841458,-151.0,0.0002113,2]
[366148438,1750087841468,-500.0,0.0002113,2]
[366148441,1750087841478,-500.0,0.0002113,2]
[366148444,1750087841488,-151.0,0.0002113,2]
[366148447,1750087841498,-500.0,0.0002113,2]
[366148450,1750087841507,-500.0,0.0002113,2]
[366148452,1750087841517,-151.0,0.0002113,2]
[366148455,1750087841527,-500.0,0.0002113,2]
[366148458,1750087841538,-500.0,0.0002113,2]
[366148461,1750087841548,-500.0,0.0002113,2]
[366148464,1750087841558,-151.0,0.0002113,2]
[366148467,1750087841568,-500.0,0.0002113,2]
[366148470,1750087841578,-151.0,0.0002113,2]
[366148473,1750087841588,-500.0,0.0002113,2]
[366148476,1750087841598,-500.0,0.0002113,2]
[366148479,1750087841608,-151.0,0.0002113,2]
[366148482,1750087841618,-500.0,0.0002113,2]
[366148485,1750087841628,-151.0,0.0002113,2]
[366148488,1750087841637,-500.0,0.0002113,2]
[366148492,1750087841649,-189.20910977,0.0002113,2]
[366148495,1750087841659,-25000.0,0.0002113,2]
[366148497,1750087841669,-6986.36385282,0.0002113,2]
[366148499,1750087841679,-1392.94120205,0.00021141,4]
[366148501,1750087841689,-1000.0,0.00021169,2]
[366148503,1750087841698,-810.39910906,0.00021169,2]
[366148504,1750087841708,-1000.0,0.00021169,2]
[366148506,1750087841717,-625.25947612,0.00021169,2]
[366148507,1750087841726,-515.33291534,0.00021169,2]
[366148508,1750087841736,-1750.456,0.00021185,2]
[366148509,1750087841746,-1815.222872,0.0002124,2]
[366148511,1750087841757,-1882.38611826,0.00021295,2]
[366148513,1750087841766,-1500.0,0.00021302,2]
[366148515,1750087841776,-1392.94120205,0.00021348,5]
[366148517,1750087841787,-1952.03440464,0.0002135,2]
[366148519,1750087841796,-460.0,0.00021369,2]
[366148521,1750087841807,-460.0,0.00021369,4]
[366148523,1750087841817,-460.0,0.00021369,4]
[366148525,1750087841827,-460.0,0.00021369,4]
[366148527,1750087841837,-460.0,0.00021369,4]
[366148529,1750087841847,-460.0,0.00021369,4]
[366148531,1750087841856,-460.0,0.00021369,4]
[366148533,1750087841866,-460.0,0.00021369,4]
[366148536,1750087841876,-460.0,0.00021369,4]
[366148538,1750087841886,-460.0,0.00021369,4]
[366148540,1750087841897,-621.17,0.00021369,4]
[366148543,1750087841906,-460.0,0.00021369,4]
[366148545,1750087841916,-460.0,0.00021369,4]
[366148547,1750087841925,-551.53,0.00021369,4]
[366148550,1750087841935,-460.0,0.00021369,4]
[366148552,1750087841944,-981.71,0.00021369,4]
[366148555,1750087841953,-628.55,0.00021369,4]
[366148559,1750087841963,-2024.25967761,0.00021405,2]
[366148562,1750087841974,-1500.0,0.00021458,2]
[366148565,1750087841984,-2099.15728568,0.0002146,2]
[366148568,1750087841993,-2176.82610525,0.00021515,2]
[366148571,1750087842003,-500.0,0.0002155,2]
[366148574,1750087842012,-500.0,0.0002155,2]
[366148577,1750087842022,-500.0,0.0002155,2]
[366148580,1750087842032,-500.0,0.0002155,2]
[366148582,1750087842040,-1392.94120205,0.00021555,5]
[366148585,1750087842050,-2257.36867115,0.0002157,2]
[366148588,1750087842060,-1500.0,0.00021596,2]
[366148592,1750087842070,-873.16237222,0.00021596,2]
[366148595,1750087842079,-2900.11,0.00021597,2]
[366148598,1750087842089,-1500.0,0.00021622,2]
[366148601,1750087842099,-2340.89131198,0.00021625,2]
[366148604,1750087842109,-460.0,0.00021643,4]
[366148607,1750087842118,-460.0,0.00021643,4]
[366148610,1750087842128,-460.0,0.00021643,4]
[366148613,1750087842138,-460.0,0.00021643,4]
[366148616,1750087842152,-460.0,0.00021643,4]
[366148619,1750087842162,-460.0,0.00021643,4]
[366148622,1750087842172,-460.0,0.00021643,4]
[366148625,1750087842182,-460.0,0.00021643,4]
[366148628,1750087842191,-460.0,0.00021643,4]
[366148631,1750087842201,-621.17,0.00021643,4]
[366148634,1750087842211,-460.0,0.00021643,4]
[366148637,1750087842221,-460.0,0.00021643,4]
[366148640,1750087842231,-551.53,0.00021643,4]
[366148643,1750087842241,-460.0,0.00021643,4]
[366148646,1750087842250,-981.71,0.00021643,4]
[366148649,1750087842260,-628.55,0.00021643,4]
[366148652,1750087842270,-991.16,0.0002166,3]
[366148654,1750087842280,-495.58,0.0002166,3]
[366148656,1750087842290,-5000.0,0.00021678,2]
[366148658,1750087842300,-2427.50429052,0.0002168,2]
[366148660,1750087842310,-1036.3578684,0.00021717,2]
[366148662,1750087842323,-2517.32194927,0.00021735,2]
[366148664,1750087842333,-1392.94120205,0.00021762,5]
[366148666,1750087842342,-2610.4628614,0.0002179,2]
[366148668,1750087842352,-1583.34785037,0.00021817,2]
[366148670,1750087842363,-2707.04998727,0.00021845,2]
[366148672,1750087842372,-1431.74211129,0.0002185,2]
[366148674,1750087842382,-2807.2108368,0.000219,2]
[366148676,1750087842391,-587.0,0.0002191,2]
[366148678,1750087842403,-587.0,0.00021912,2]
[366148680,1750087842413,-460.0,0.00021917,4]
[366148682,1750087842423,-460.0,0.00021917,4]
[366148684,1750087842433,-460.0,0.00021917,4]
[366148686,1750087842442,-460.0,0.00021917,4]
[366148687,1750087842453,-460.0,0.00021917,4]
[366148688,1750087842463,-460.0,0.00021917,4]
[366148689,1750087842473,-460.0,0.00021917,4]
[366148690,1750087842483,-460.0,0.00021917,4]
[366148691,1750087842493,-291.31,0.00021917,4]
[366148692,1750087842502,-621.17,0.00021917,4]
[366148693,1750087842512,-460.0,0.00021917,4]
[366148694,1750087842521,-460.0,0.00021917,4]
[366148695,1750087842531,-551.53,0.00021917,4]
[366148696,1750087842541,-460.0,0.00021917,4]
[366148697,1750087842551,-981.71,0.00021917,4]
[366148698,1750087842560,-628.55,0.00021917,4]
[366148699,1750087842571,-1290.41599114,0.00021955,2]
[366148700,1750087842580,-1392.94120205,0.00021969,6]
[366148701,1750087842590,-1442.77809707,0.00021995,2]
[366148702,1750087842599,-174.0,0.00022,2]
[366148703,1750087842610,-165.0,0.00022,2]
[366148704,1750087842620,-5000.0,0.00022032,2]
[366148705,1750087842629,-500.0,0.00022098,2]
[366148706,1750087842639,-1000.0,0.00022098,2]
[366148707,1750087842651,-2000.0,0.00022144,2]
[366148711,1750087842777,-1392.94120205,0.00022176,6]
[366148712,1750087842788,-460.0,0.00022191,4]
[366148713,1750087842798,-460.0,0.00022191,4]
[366148714,1750087842808,-460.0,0.00022191,4]
[366148715,1750087842818,-460.0,0.00022191,4]
[366148716,1750087842828,-460.0,0.00022191,4]
[366148717,1750087842838,-460.0,0.00022191,4]
[366148718,1750087842848,-460.0,0.00022191,4]
[366148719,1750087842857,-460.0,0.00022191,4]
[366148720,1750087842867,-621.17,0.00022191,4]
[366148721,1750087842877,-460.0,0.00022191,4]
[366148722,1750087842887,-460.0,0.00022191,4]
[366148725,1750087842897,-551.53,0.00022191,4]
[366148727,1750087842906,-460.0,0.00022191,4]
[366148729,1750087842916,-981.71,0.00022191,4]
[366148731,1750087842926,-628.55,0.00022191,4]
[366148733,1750087842935,-5000.0,0.00022226,2]
[366148735,1750087842945,-989.0,0.00022343,2]
[366148737,1750087842955,-1392.94120205,0.00022383,7]
[366148739,1750087842965,-460.0,0.00022465,4]
[366148741,1750087842975,-460.0,0.00022465,4]
[366148743,1750087842985,-460.0,0.00022465,4]
[366148745,1750087842994,-236.76504361,0.00022465,4]
[366148747,1750087843004,-258.31,0.00022465,4]
[366148749,1750087843013,-460.0,0.00022465,4]
[366148751,1750087843023,-460.0,0.00022465,4]
[366148753,1750087843032,-460.0,0.00022465,4]
[366148755,1750087843042,-621.17,0.00022465,4]
[366148757,1750087843052,-460.0,0.00022465,4]
[366148759,1750087843062,-460.0,0.00022465,4]
[366148761,1750087843072,-551.53,0.00022465,4]
[366148763,1750087843082,-460.0,0.00022465,4]
[366148764,1750087843092,-981.71,0.00022465,4]
[366148766,1750087843102,-628.55,0.00022465,4]
[366148768,1750087843112,-215.0738,0.00022499,2]
[366148770,1750087843122,-4350.17,0.00022579,2]
[366148773,1750087843132,-1392.94120205,0.0002259,7]
[366148775,1750087843142,-800.0,0.00022637,2]
[366148776,1750087843153,-1583.34785037,0.00022639,2]
[366148777,1750087843164,-1026.91160882,0.00022692,2]
[366148778,1750087843174,-460.0,0.00022739,4]
[366148779,1750087843184,-460.0,0.00022739,4]
[366148780,1750087843193,-460.0,0.00022739,4]
[366148781,1750087843203,-460.0,0.00022739,4]
[366148782,1750087843212,-173.06,0.00022739,4]
[366148783,1750087843222,-460.0,0.00022739,4]
[366148784,1750087843232,-621.17,0.00022739,4]
[366148785,1750087843242,-460.0,0.00022739,4]
[366148786,1750087843252,-460.0,0.00022739,4]
[366148787,1750087843262,-551.53,0.00022739,4]
[366148788,1750087843272,-460.0,0.00022739,4]
[366148789,1750087843282,-981.71,0.00022739,4]
[366148790,1750087843292,-2160.0,0.00022748,2]
[366148791,1750087843302,-653.0,0.00022748,2]
[366148792,1750087843311,-406.0,0.00022748,2]
[366148794,1750087843324,-964.0,0.00022748,2]
[366148796,1750087843335,-5000.0,0.00022774,2]
[366148798,1750087843345,-883.90438298,0.00022777,2]
[366148799,1750087843355,-1392.94120205,0.00022797,7]
[366148801,1750087843366,-989.0,0.00022835,2]
[366148803,1750087843376,-1039.92469143,0.00022902,2]
[366148804,1750087843386,-989.0,0.00022975,2]
[366148805,1750087843400,-14124.78219425,0.00023,20]
[366148806,1750087843411,-200.0,0.00023,2]
[366148807,1750087843422,-1392.94120205,0.00023003,8]
[366148808,1750087843432,-989.0,0.00023009,2]
[366148809,1750087843441,-169.93573205,0.00023012,2]
[366148810,1750087843451,-460.0,0.00023013,4]
[366148811,1750087843461,-460.0,0.00023013,4]
[366148812,1750087843472,-460.0,0.00023013,4]
[366148813,1750087843482,-460.0,0.00023013,4]
[366148814,1750087843492,-202.30197712,0.00023013,4]
[366148815,1750087843502,-621.17,0.00023013,4]
[366148816,1750087843513,-492.91,0.00023013,4]
[366148817,1750087843524,-460.0,0.00023013,4]
[366148818,1750087843533,-551.53,0.00023013,4]
[366148819,1750087843544,-460.0,0.00023013,4]
[366148820,1750087843553,-981.71,0.00023013,4]
[366148821,1750087843563,-196.65748895,0.00023014,2]
[366148822,1750087843574,-500.0,0.00023014,2]
[366148823,1750087843585,-500.0,0.00023015,2]
[366148824,1750087843595,-158.66118946,0.00023068,2]
[366148825,1750087843606,-500.0,0.00023073,2]
[366148826,1750087843615,-279.28934188,0.00023073,2]
[366148827,1750087843626,-201.86789802,0.00023073,2]
[366148828,1750087843636,-905.33,0.000231,2]
[366148829,1750087843647,-45269.49428777,0.00023176,2]
[366148830,1750087843658,-1392.94120205,0.0002321,8]
[366148831,1750087843670,-989.0,0.00023212,2]
[366148832,1750087843680,-501.8668994,0.0002322,2]
[366148833,1750087843689,-170.73596121,0.0002322,2]
[366148835,1750087843699,-502.36907748,0.0002322,2]
[366148837,1750087843710,-500.0,0.00023231,2]
[366148839,1750087843720,-160.0,0.00023231,2]
[366148841,1750087843731,-989.0,0.00023232,2]
[366148843,1750087843743,-500.0,0.00023243,2]
[366148845,1750087843753,-500.0,0.00023269,2]
[366148847,1750087843763,-460.0,0.00023287,4]
[366148849,1750087843774,-460.0,0.00023287,4]
[366148852,1750087843784,-460.0,0.00023287,4]
[366148853,1750087843794,-520.12219802,0.00023287,4]
[366148855,1750087843804,-621.17,0.00023287,4]
[366148857,1750087843814,-460.0,0.00023287,4]
[366148859,1750087843824,-551.53,0.00023287,4]
[366148860,1750087843834,-460.0,0.00023287,4]
[366148861,1750087843844,-981.71,0.00023287,4]
[366148862,1750087843853,-500.0,0.00023288,2]
[366148863,1750087843862,-500.0,0.00023288,2]
[366148864,1750087843872,-500.0,0.00023288,2]
[366148865,1750087843882,-500.0,0.00023288,2]
[366148866,1750087843891,-500.0,0.00023288,2]
[366148867,1750087843901,-500.0,0.00023288,2]
[366148868,1750087843910,-500.0,0.00023288,2]
[366148869,1750087843920,-500.0,0.00023288,2]
[366148870,1750087843930,-500.0,0.00023288,2]
[366148871,1750087843939,-500.0,0.00023288,2]
[366148872,1750087843948,-500.0,0.00023288,2]
[366148873,1750087843958,-500.0,0.00023288,2]
[366148874,1750087843967,-500.0,0.00023288,2]
[366148875,1750087843977,-500.0,0.00023288,2]
[366148876,1750087843986,-216.10565531,0.00023288,2]
[366148877,1750087843996,-500.0,0.00023288,2]
[366148878,1750087844006,-989.0,0.0002332,2]
[366148879,1750087844015,-5000.0,0.00023322,2]
[366148880,1750087844025,-158.66118946,0.0002337,2]
[366148881,1750087844034,-153.0,0.0002337,2]
[366148882,1750087844044,-153.0,0.0002337,2]
[366148883,1750087844054,-153.0,0.0002337,2]
[366148884,1750087844063,-307.5347894,0.0002337,2]
[366148885,1750087844073,-989.0,0.000234,2]
[366148886,1750087844082,-1392.94120205,0.00023417,9]
[366148887,1750087844092,-1583.34785037,0.00023461,2]
[366148888,1750087844101,-989.0,0.00023488,2]
[366148889,1750087844111,-500.0,0.00023491,2]
[366148890,1750087844121,-500.0,0.000235,2]
[366148891,1750087844130,-500.0,0.000235,2]
[366148892,1750087844139,-500.0,0.000235,2]
[366148893,1750087844150,-500.0,0.0002354,2]
[366148894,1750087844159,-5800.22,0.0002356,2]
[366148895,1750087844169,-460.0,0.00023561,4]
[366148896,1750087844178,-460.0,0.00023561,4]
[366148897,1750087844188,-460.0,0.00023561,4]
[366148898,1750087844198,-621.17,0.00023561,4]
[366148899,1750087844207,-460.0,0.00023561,4]
[366148900,1750087844217,-551.53,0.00023561,4]
[366148901,1750087844227,-460.0,0.00023561,4]
[366148902,1750087844237,-981.71,0.00023561,4]
[366148903,1750087844247,-1000.0,0.00023562,2]
[366148904,1750087844257,-1000.0,0.00023563,2]
[366148905,1750087844267,-47332.95894479,0.00023613,7]
[366148906,1750087844276,-500.0,0.00023621,2]
[366148907,1750087844286,-1392.94120205,0.00023624,9]
[366148908,1750087844295,-158.66118946,0.00023671,2]
[366148909,1750087844306,-43700.83025172,0.00023687,2]
[366148910,1750087844317,-213.36025772,0.000237,7]
[366148911,1750087844328,-500.0,0.00023773,2]
[366148912,1750087844338,-500.0,0.00023773,2]
[366148913,1750087844348,-500.0,0.00023773,2]
[366148914,1750087844359,-573.8401486,0.00023773,2]
[366148915,1750087844368,-500.0,0.00023773,2]
[366148916,1750087844378,-500.0,0.00023773,2]
[366148917,1750087844388,-500.94760593,0.00023773,2]
[366148918,1750087844399,-500.0,0.00023773,2]
[366148919,1750087844409,-500.0,0.00023773,2]
[366148920,1750087844418,-500.0,0.00023773,2]
[366148921,1750087844427,-500.0,0.00023773,2]
[366148922,1750087844436,-500.84919256,0.00023773,2]
[366148923,1750087844446,-500.0,0.00023773,2]
[366148924,1750087844456,-500.0,0.00023773,2]
[366148925,1750087844465,-500.0,0.00023773,2]
[366148926,1750087844474,-260.41176053,0.00023773,2]
[366148927,1750087844484,-500.0,0.00023773,2]
[366148928,1750087844494,-152.91354487,0.00023773,2]
[366148929,1750087844504,-243.40682598,0.00023773,2]
[366148930,1750087844515,-526.92702148,0.00023773,2]
[366148931,1750087844524,-500.0,0.00023773,2]
[366148932,1750087844534,-500.0,0.00023773,2]
[366148933,1750087844545,-502.67521021,0.00023773,2]
[366148934,1750087844555,-500.0,0.00023773,2]
[366148935,1750087844565,-500.0,0.00023773,2]
[366148936,1750087844575,-500.0,0.00023773,2]
[366148937,1750087844584,-500.0,0.00023773,2]
[366148938,1750087844594,-500.0,0.00023773,2]
[366148939,1750087844604,-600.0,0.00023773,2]
[366148940,1750087844614,-5342.84276912,0.00023775,3]
[366148941,1750087844625,-502.17245355,0.0002378,2]
[366148942,1750087844636,-64029.20603024,0.00023788,2]
[366148943,1750087844647,-505.40217074,0.00023791,2]
[366148944,1750087844656,-160.0,0.000238,3]
[366148945,1750087844666,-835.67987521,0.000238,3]
[366148946,1750087844676,-12537.89035583,0.000238,3]
[366148947,1750087844685,-34133.5316506,0.000238,2]
[366148948,1750087844695,-845.47092152,0.000238,3]
[366148949,1750087844714,-899426.12061062,0.000238,3]
[366148950,1750087844724,-6823.23432912,0.000238,5]
[366148951,1750087844733,-160.0,0.000238,3]
[366148952,1750087844743,-213.36025772,0.000238,3]
[366148953,1750087844754,-229.90125484,0.000238,3]
[366148954,1750087844765,-1392.94120205,0.00023831,10]
[366148955,1750087844775,-595.43,0.00023835,4]
[366148956,1750087844785,-460.0,0.00023835,4]
[366148957,1750087844795,-460.0,0.00023835,4]
[366148958,1750087844805,-621.17,0.00023835,4]
[366148959,1750087844815,-460.0,0.00023835,4]
[366148960,1750087844824,-551.53,0.00023835,4]
[366148961,1750087844835,-460.0,0.00023835,4]
[366148962,1750087844845,-981.71,0.00023835,4]
[366148963,1750087844855,-223.0315306,0.00023868,2]
[366148964,1750087844865,-5000.0,0.0002387,2]
[366148965,1750087844875,-5020.69256955,0.00023893,2]
[366148966,1750087844884,-823.0,0.00023898,2]
[366148967,1750087844894,-600.0,0.00023904,2]
[366148968,1750087844903,-160.0,0.00023917,3]
[366148969,1750087844913,-989.0,0.00023957,2]
[366148970,1750087844923,-166.815967,0.00023973,2]
[366148971,1750087844932,-177.98,0.00024,7]
[366148972,1750087844942,-151.0,0.00024,9]
[366148973,1750087844951,-1040.88,0.00024,30]
[366148974,1750087844961,-150.0,0.00024,5]
[366148975,1750087844971,-9022.23364794,0.00024,14]
[366148976,1750087845223,-500.0,0.00019177,2]
[366148977,1750087845233,-375.1174429,0.00022739,4]
[366148978,1750087845249,-216.73851725,0.00019177,2]
[366148979,1750087845259,-56.54576672,0.00022739,4]
[366148980,1750087845271,-196.88679038,0.00022739,4]
[366148981,1750087845280,-203.11320962,0.00023013,4]
[366148982,1750087845311,-500.0,0.00019177,2]
[366148983,1750087845323,-500.0,0.00019177,2]
[366148984,1750087845334,-425.43679038,0.00023013,4]
[366148985,1750087845345,-628.55,0.00023287,4]
[366148986,1750087845354,-628.55,0.00023561,4]
[366148987,1750087845366,-628.55,0.00023835,4]
[366148988,1750087845376,-1069.13290078,0.00024,14]
[366148989,1750087845386,-1101.07240044,0.00024,14]
[366148990,1750087845398,-1632.59359545,0.00024,2]
[366148991,1750087845496,-460.0,0.00019178,2]
[366148992,1750087845506,-460.0,0.00019178,2]
[366148993,1750087845516,-460.0,0.00019452,4]
[366148994,1750087845528,-460.0,0.00019452,4]
[366148995,1750087845538,-460.0,0.00019726,4]
[366148996,1750087845548,-563.13650437,0.00019726,4]
[366148997,1750087845558,-136.86349563,0.0002,4]
[366148998,1750087845574,-161.49703293,0.0002,4]
[366148999,1750087845584,-4807.54098485,0.00024,2]
[366149000,1750087845631,500.0,0.00021917,60]
[366149016,1750087846351,-460.0,0.00019178,2]
[366149018,1750087846361,-460.0,0.00019178,2]
[366149020,1750087846371,-460.0,0.00019178,2]
[366149022,1750087846381,-460.0,0.00019178,2]
[366149024,1750087846391,-572.74383123,0.00019452,4]
[366149026,1750087846403,-45.66749553,0.00019452,4]
[366149028,1750087846415,-354.99977935,0.00019452,4]
[366149102,1750087950747,200.0,0.00024282,120]
[366149104,1750088010055,214.38716,0.00017869,2]
[366149105,1750088010773,200.0,0.00024633,120]
[366149124,1750088070768,200.0,0.00024425,120]
[366149126,1750088172643,231.423849,0.00017607,2]
[366149128,1750088197192,24900.0,0.00017585,2]
[366149130,1750088310807,200.0,0.00023717,120]
[366149134,1750088419697,390.47647226,0.00024,120]
[366149135,1750088530939,2000.0,0.00017417,120]
[366149136,1750088546874,5464.08806822,0.00017585,2]
[366149137,1750088549372,155.0004393,0.00024994,60]
[366149138,1750088579235,465.0,0.00024994,60]
[366149140,1750088597603,400.0,0.00024657,120]
[366149141,1750088612814,208.1478842,0.00017865,2]
[366150038,1750088658221,500.0,0.00024658,120]
[366150077,1750088677890,500.0,0.00024658,120]
[366150086,1750088737309,3587546.85547333,0.00025,60]
[366150087,1750088746047,166.815967,0.00013699,2]
[366150089,1750088751760,6000.0,0.00024658,120]
[366150508,1750088981175,-205.20717996,0.00018316,2]
[366150510,1750088981707,-1794.79282004,0.00018354,2]
[366150511,1750088981745,-1759.90345996,0.00018354,2]
[366150512,1750088981775,-204.32,0.00018408,2]
[366150513,1750088981803,-35.77654004,0.00018408,2]
[366150514,1750088981846,-632.63801666,0.00018408,2]
[366150515,1750088981874,-300.0,0.00018414,2]
[366150516,1750088981902,-1067.36198334,0.00018415,2]
[366150517,1750088981945,-132.63801666,0.00018415,2]
[366150518,1750088981975,-500.0,0.00018415,2]
[366150519,1750088982006,-500.0,0.00018415,2]
[366150520,1750088982038,-320.22968487,0.00018415,2]
[366150521,1750088982071,-500.0,0.00018415,2]
[366150522,1750088982104,-47.13229847,0.00018415,2]
[366150523,1750088982140,-452.86770153,0.00018415,2]
[366150524,1750088982171,-500.0,0.00018415,2]
[366150525,1750088982202,-500.0,0.00018415,2]
[366150526,1750088982230,-500.0,0.00018415,2]
[366150527,1750088982257,-47.13229847,0.00018415,2]
[366150528,1750088982293,-116.89270153,0.00018415,2]
[366150529,1750088982320,-500.0,0.00018415,2]
[366150530,1750088982350,-500.0,0.00018415,2]
[366150531,1750088982380,-593.73457857,0.00018415,2]
[366150532,1750088982409,-289.3727199,0.00018415,2]
[366150533,1750088982601,-210.6272801,0.00018415,2]
[366150534,1750088982635,-500.0,0.00018415,2]
[366150535,1750088982664,-598.93070503,0.00018415,2]
[366150536,1750088982690,-527.07328474,0.00018415,2]
[366150537,1750088982721,-163.36873013,0.00018415,2]
[366150538,1750088982759,-336.63126987,0.00018415,2]
[366150539,1750088982788,-500.0,0.00018415,2]
[366150540,1750088982817,-500.0,0.00018415,2]
[366150541,1750088982846,-500.0,0.00018415,2]
[366150542,1750088982874,-163.36873013,0.00018415,2]
[366150551,1750088987466,-336.63126987,0.00018415,2]
[366150552,1750088987494,-500.0,0.00018415,2]
[366150553,1750088987524,-500.0,0.00018415,2]
[366150554,1750088987554,-400.0,0.00018415,2]
[366150555,1750088987579,-263.36873013,0.00018416,2]
[366150556,1750088987621,-36.63126987,0.00018416,2]
[366150557,1750088987647,-300.0,0.00018416,2]